[Event "Titled Tuesday Blitz January 11 2022"]
[White "Triapishko, Alexandr"]
[Black "Tarlabasi, Emirhan"]
[WhiteFideId "14122286"]
[BlackFideId "6350275"]
[WhiteElo "2479"]
[BlackElo "1949"]
[Result "1-0"]
[Round "01"]
[TimeControl "180+1"]
[Date "2022.01.11"]
[WhiteClock "0:00:27"]
[BlackClock "0:00:05"]

1. e4 {[%clk 0:02:47]}  c5 {[%clk 0:03:00]} 2. Nf3 {[%clk 0:02:47]}  e6 {[%clk 0:03:00]} 3. d4 {[%clk 0:02:37]}  cxd4 {[%clk 0:03:01]} 4. Nxd4 {[%clk 0:02:38]}  Nf6 {[%clk 0:03:01]} 5. Nc3 {[%clk 0:02:35]}  Nc6 {[%clk 0:02:56]} 6. Ndb5 {[%clk 0:02:27]}  Bb4 {[%clk 0:02:56]} 7. a3 {[%clk 0:02:26]}  Bxc3+ {[%clk 0:02:56]} 8. Nxc3 {[%clk 0:02:27]}  d5 {[%clk 0:02:56]} 9. exd5 {[%clk 0:02:26]}  Nxd5 {[%clk 0:02:57]} 10. Bd2 {[%clk 0:02:26]}  O-O {[%clk 0:02:49]} 11. Bd3 {[%clk 0:02:25]}  h6 {[%clk 0:02:22]} 12. O-O {[%clk 0:02:19]}  Re8 {[%clk 0:02:11]} 13. Re1 {[%clk 0:02:16]}  e5 {[%clk 0:02:00]} 14. Nxd5 {[%clk 0:02:11]}  Qxd5 {[%clk 0:02:00]} 15. Bxh6 {[%clk 0:02:11]}  e4 {[%clk 0:01:46]} 16. Bf4 {[%clk 0:01:50]}  Bf5 {[%clk 0:01:39]} 17. Bf1 {[%clk 0:01:48]}  Rad8 {[%clk 0:01:32]} 18. Qxd5 {[%clk 0:01:46]}  Rxd5 {[%clk 0:01:33]} 19. Rad1 {[%clk 0:01:41]}  Red8 {[%clk 0:01:32]} 20. Rxd5 {[%clk 0:01:41]}  Rxd5 {[%clk 0:01:33]} 21. c3 {[%clk 0:01:42]}  Na5 {[%clk 0:01:13]} 22. h3 {[%clk 0:01:36]}  Rd7 {[%clk 0:01:07]} 23. g4 {[%clk 0:01:34]}  Bg6 {[%clk 0:01:06]} 24. Kg2 {[%clk 0:01:26]}  f5 {[%clk 0:01:02]} 25. b4 {[%clk 0:01:26]}  Nc6 {[%clk 0:01:00]} 26. Bc4+ {[%clk 0:01:20]}  Kf8 {[%clk 0:00:54]} 27. Be6 {[%clk 0:01:19]}  Rd3 {[%clk 0:00:51]} 28. gxf5 {[%clk 0:01:18]}  Bh5 {[%clk 0:00:50]} 29. Be3 {[%clk 0:01:05]}  Bf3+ {[%clk 0:00:49]} 30. Kg3 {[%clk 0:01:04]}  Rxc3 {[%clk 0:00:48]} 31. Kf4 {[%clk 0:01:00]}  b6 {[%clk 0:00:39]} 32. b5 {[%clk 0:00:56]}  Nd8 {[%clk 0:00:38]} 33. a4 {[%clk 0:00:55]}  Nxe6+ {[%clk 0:00:35]} 34. fxe6 {[%clk 0:00:56]}  Ke7 {[%clk 0:00:35]} 35. Ke5 {[%clk 0:00:56]}  g6 {[%clk 0:00:18]} 36. Rg1 {[%clk 0:00:43]}  Bh5 {[%clk 0:00:18]} 37. Bg5+ {[%clk 0:00:44]}  Ke8 {[%clk 0:00:18]} 38. h4 {[%clk 0:00:42]}  Rc5+ {[%clk 0:00:17]} 39. Kxe4 {[%clk 0:00:40]}  Rc4+ {[%clk 0:00:17]} 40. Ke5 {[%clk 0:00:38]}  Rxa4 {[%clk 0:00:17]} 41. Rc1 {[%clk 0:00:36]}  Kf8 {[%clk 0:00:06]} 42. Rc8+ {[%clk 0:00:26]}  Kg7 {[%clk 0:00:05]} 43. Bf6+ {[%clk 0:00:27]} 1-0


[Site "https://www.chess.com"]

[Event "Titled Tuesday Blitz January 11 2022"]
[White "Tsydypov, Zhamsaran"]
[Black "Stromboli, Ettore"]
[WhiteFideId "4108566"]
[BlackFideId "813761"]
[WhiteElo "2614"]
[BlackElo "2414"]
[Result "0-1"]
[Round "01"]
[TimeControl "180+1"]
[Date "2022.01.11"]
[WhiteClock "0:01:50"]
[BlackClock "0:01:07"]

1. d4 {[%clk 0:02:59]}  Nf6 {[%clk 0:02:59]} 2. c4 {[%clk 0:02:57]}  e6 {[%clk 0:02:53]} 3. Nf3 {[%clk 0:02:57]}  b6 {[%clk 0:02:52]} 4. Qc2 {[%clk 0:02:56]}  c5 {[%clk 0:02:50]} 5. d5 {[%clk 0:02:54]}  d6 {[%clk 0:02:48]} 6. e4 {[%clk 0:02:54]}  exd5 {[%clk 0:02:47]} 7. cxd5 {[%clk 0:02:54]}  Be7 {[%clk 0:02:47]} 8. Nc3 {[%clk 0:02:54]}  O-O {[%clk 0:02:46]} 9. h3 {[%clk 0:02:54]}  Ba6 {[%clk 0:02:45]} 10. Bxa6 {[%clk 0:02:52]}  Nxa6 {[%clk 0:02:46]} 11. O-O {[%clk 0:02:53]}  Nc7 {[%clk 0:02:38]} 12. Rd1 {[%clk 0:02:52]}  Nd7 {[%clk 0:02:32]} 13. Bf4 {[%clk 0:02:51]}  b5 {[%clk 0:02:31]} 14. a3 {[%clk 0:02:51]}  a5 {[%clk 0:02:30]} 15. e5 {[%clk 0:02:50]}  dxe5 {[%clk 0:02:29]} 16. Nxe5 {[%clk 0:02:50]}  Nxe5 {[%clk 0:02:28]} 17. Bxe5 {[%clk 0:02:51]}  Bd6 {[%clk 0:02:28]} 18. Bxd6 {[%clk 0:02:49]}  Qxd6 {[%clk 0:02:29]} 19. Ne4 {[%clk 0:02:50]}  Qe5 {[%clk 0:02:26]} 20. Nxc5 {[%clk 0:02:49]}  Rfd8 {[%clk 0:02:22]} 21. d6 {[%clk 0:02:43]}  Rxd6 {[%clk 0:02:18]} 22. Nd7 {[%clk 0:02:43]}  Qf4 {[%clk 0:02:09]} 23. g3 {[%clk 0:02:43]}  Rxd1+ {[%clk 0:02:08]} 24. Rxd1 {[%clk 0:02:42]}  Qc4 {[%clk 0:02:07]} 25. Qxc4 {[%clk 0:02:42]}  bxc4 {[%clk 0:02:08]} 26. Ne5 {[%clk 0:02:43]}  c3 {[%clk 0:02:05]} 27. bxc3 {[%clk 0:02:43]}  Nb5 {[%clk 0:02:05]} 28. c4 {[%clk 0:02:30]}  Nxa3 {[%clk 0:02:05]} 29. Rc1 {[%clk 0:02:31]}  Rc8 {[%clk 0:01:53]} 30. c5 {[%clk 0:02:23]}  Nb5 {[%clk 0:01:52]} 31. Nd7 {[%clk 0:02:22]}  Rc7 {[%clk 0:01:39]} 32. Nb6 {[%clk 0:02:21]}  Kf8 {[%clk 0:01:31]} 33. c6 {[%clk 0:02:20]}  Nd4 {[%clk 0:01:29]} 34. Rc5 {[%clk 0:02:16]}  Rxc6 {[%clk 0:01:25]} 35. Rd5 {[%clk 0:02:11]}  Rxb6 {[%clk 0:01:24]} 36. Rxd4 {[%clk 0:02:11]}  Rb4 {[%clk 0:01:23]} 37. Rd8+ {[%clk 0:02:10]}  Ke7 {[%clk 0:01:23]} 38. Ra8 {[%clk 0:02:10]}  a4 {[%clk 0:01:24]} 39. Ra6 {[%clk 0:02:11]}  h5 {[%clk 0:01:24]} 40. h4 {[%clk 0:02:10]}  f6 {[%clk 0:01:22]} 41. Kf1 {[%clk 0:02:10]}  g5 {[%clk 0:01:19]} 42. hxg5 {[%clk 0:02:10]}  fxg5 {[%clk 0:01:20]} 43. Kg2 {[%clk 0:02:10]}  h4 {[%clk 0:01:20]} 44. gxh4 {[%clk 0:02:10]}  gxh4 {[%clk 0:01:21]} 45. Kh3 {[%clk 0:02:11]}  Kd7 {[%clk 0:01:20]} 46. Ra7+ {[%clk 0:02:11]}  Kc6 {[%clk 0:01:20]} 47. Ra5 {[%clk 0:02:09]}  Kb6 {[%clk 0:01:20]} 48. Ra8 {[%clk 0:02:10]}  Kb5 {[%clk 0:01:19]} 49. Ra7 {[%clk 0:02:00]}  Rd4 {[%clk 0:01:15]} 50. Ra8 {[%clk 0:01:53]}  Kb4 {[%clk 0:01:12]} 51. Rb8+ {[%clk 0:01:53]}  Kc3 {[%clk 0:01:12]} 52. Ra8 {[%clk 0:01:53]}  Rb4 {[%clk 0:01:10]} 53. f3 {[%clk 0:01:50]}  Kb2 {[%clk 0:01:07]} 0-1


[Site "https://www.chess.com"]

[Event "Titled Tuesday Blitz January 11 2022"]
[White "Vivas Zamora, Fabian Ernesto"]
[Black "Paravyan, David"]
[WhiteFideId "3902480"]
[BlackFideId "4194985"]
[WhiteElo "1966"]
[BlackElo "2569"]
[Result "0-1"]
[Round "01"]
[TimeControl "180+1"]
[Date "2022.01.11"]
[WhiteClock "0:00:01"]
[BlackClock "0:00:17"]

1. c4 {[%clk 0:02:40]}  Nc6 {[%clk 0:02:55]} 2. d4 {[%clk 0:02:31]}  e5 {[%clk 0:02:55]} 3. d5 {[%clk 0:02:21]}  Bb4+ {[%clk 0:02:54]} 4. Bd2 {[%clk 0:02:16]}  Bxd2+ {[%clk 0:02:53]} 5. Qxd2 {[%clk 0:02:17]}  Nce7 {[%clk 0:02:54]} 6. d6 {[%clk 0:02:14]}  cxd6 {[%clk 0:02:53]} 7. Nc3 {[%clk 0:02:12]}  Nf6 {[%clk 0:02:54]} 8. e4 {[%clk 0:02:09]}  b5 {[%clk 0:02:51]} 9. cxb5 {[%clk 0:02:06]}  Bb7 {[%clk 0:02:49]} 10. Qxd6 {[%clk 0:01:51]}  Nxe4 {[%clk 0:02:47]} 11. Qxe5 {[%clk 0:01:50]}  O-O {[%clk 0:02:44]} 12. Nxe4 {[%clk 0:01:43]}  Ng6 {[%clk 0:02:35]} 13. Qg3 {[%clk 0:01:37]}  Bxe4 {[%clk 0:02:34]} 14. Be2 {[%clk 0:01:23]}  Re8 {[%clk 0:02:29]} 15. Nh3 {[%clk 0:01:17]}  Qa5+ {[%clk 0:02:28]} 16. Kf1 {[%clk 0:01:16]}  Rac8 {[%clk 0:02:22]} 17. Ng5 {[%clk 0:01:13]}  Bd5 {[%clk 0:01:43]} 18. h4 {[%clk 0:01:07]}  Qxa2 {[%clk 0:01:33]} 19. Rd1 {[%clk 0:00:51]}  Qxb2 {[%clk 0:01:33]} 20. Bf3 {[%clk 0:00:45]}  Bb3 {[%clk 0:01:27]} 21. h5 {[%clk 0:00:37]}  Ne5 {[%clk 0:01:27]} 22. Re1 {[%clk 0:00:28]}  Qd2 {[%clk 0:01:15]} 23. Ne4 {[%clk 0:00:17]}  Bc4+ {[%clk 0:01:14]} 24. Kg1 {[%clk 0:00:10]}  Qxe1+ {[%clk 0:01:14]} 25. Kh2 {[%clk 0:00:11]}  Qb4 {[%clk 0:00:50]} 26. Nf6+ {[%clk 0:00:09]}  Kh8 {[%clk 0:00:51]} 27. h6 {[%clk 0:00:06]}  g6 {[%clk 0:00:40]} 28. Nxe8 {[%clk 0:00:06]}  Rxe8 {[%clk 0:00:40]} 29. Qf4 {[%clk 0:00:04]}  Qd6 {[%clk 0:00:40]} 30. g3 {[%clk 0:00:02]}  Kg8 {[%clk 0:00:37]} 31. Rc1 {[%clk 0:00:02]}  Qd2 {[%clk 0:00:28]} 32. Rxc4 {[%clk 0:00:02]}  Nxc4 {[%clk 0:00:22]} 33. Qf6 {[%clk 0:00:02]}  Qxh6+ {[%clk 0:00:22]} 34. Kg2 {[%clk 0:00:02]}  Ne5 {[%clk 0:00:22]} 35. Bd5 {[%clk 0:00:02]}  Qg7 {[%clk 0:00:22]} 36. Qd6 {[%clk 0:00:02]}  h5 {[%clk 0:00:22]} 37. Qc7 {[%clk 0:00:02]}  Qf6 {[%clk 0:00:18]} 38. Qxa7 {[%clk 0:00:01]}  Qd6 {[%clk 0:00:17]} 0-1


[Site "https://www.chess.com"]

[Event "Titled Tuesday Blitz January 11 2022"]
[White "Vusatiuk, Vladimir"]
[Black "Xiong, Jeffery"]
[WhiteFideId "14118610"]
[BlackFideId "2047640"]
[WhiteElo "2157"]
[BlackElo "2727"]
[Result "1-0"]
[Round "01"]
[TimeControl "180+1"]
[Date "2022.01.11"]
[WhiteClock "0:00:20"]
[BlackClock "0:00:28"]

1. d4 {[%clk 0:03:00]}  Nf6 {[%clk 0:02:43]} 2. c4 {[%clk 0:03:00]}  g6 {[%clk 0:02:42]} 3. Nc3 {[%clk 0:03:01]}  d5 {[%clk 0:02:41]} 4. cxd5 {[%clk 0:03:00]}  Nxd5 {[%clk 0:02:42]} 5. e4 {[%clk 0:03:01]}  Nxc3 {[%clk 0:02:43]} 6. bxc3 {[%clk 0:03:02]}  Bg7 {[%clk 0:02:44]} 7. Nf3 {[%clk 0:02:55]}  c5 {[%clk 0:02:44]} 8. Rb1 {[%clk 0:02:45]}  O-O {[%clk 0:02:41]} 9. Be2 {[%clk 0:02:39]}  b6 {[%clk 0:02:34]} 10. O-O {[%clk 0:02:37]}  Qc7 {[%clk 0:02:34]} 11. Qd3 {[%clk 0:02:37]}  e6 {[%clk 0:02:18]} 12. Qe3 {[%clk 0:02:19]}  Nd7 {[%clk 0:02:07]} 13. e5 {[%clk 0:02:16]}  Bb7 {[%clk 0:02:06]} 14. Ba3 {[%clk 0:02:14]}  Rfd8 {[%clk 0:02:03]} 15. Rfd1 {[%clk 0:02:05]}  a6 {[%clk 0:02:02]} 16. Nd2 {[%clk 0:01:56]}  Bf8 {[%clk 0:02:02]} 17. Bf3 {[%clk 0:01:52]}  Bxf3 {[%clk 0:01:42]} 18. Qxf3 {[%clk 0:01:48]}  Rac8 {[%clk 0:01:42]} 19. Ne4 {[%clk 0:01:47]}  Qc6 {[%clk 0:01:41]} 20. h4 {[%clk 0:01:31]}  Qa4 {[%clk 0:01:26]} 21. Ng5 {[%clk 0:01:10]}  f5 {[%clk 0:01:05]} 22. exf6 {[%clk 0:01:10]}  Qxa3 {[%clk 0:01:04]} 23. f7+ {[%clk 0:01:09]}  Kh8 {[%clk 0:01:04]} 24. Nxe6 {[%clk 0:01:10]}  c4 {[%clk 0:00:58]} 25. h5 {[%clk 0:00:59]}  Qd6 {[%clk 0:00:51]} 26. Re1 {[%clk 0:00:55]}  b5 {[%clk 0:00:37]} 27. hxg6 {[%clk 0:00:54]}  h6 {[%clk 0:00:29]} 28. Re4 {[%clk 0:00:41]}  Bg7 {[%clk 0:00:30]} 29. Nxd8 {[%clk 0:00:38]}  Rxd8 {[%clk 0:00:31]} 30. Re8+ {[%clk 0:00:38]}  Nf8 {[%clk 0:00:31]} 31. Rbe1 {[%clk 0:00:32]}  Rd7 {[%clk 0:00:31]} 32. Qa8 {[%clk 0:00:29]}  Qxg6 {[%clk 0:00:26]} 33. Rxf8+ {[%clk 0:00:29]}  Bxf8 {[%clk 0:00:27]} 34. Qxf8+ {[%clk 0:00:29]}  Kh7 {[%clk 0:00:28]} 35. Re7 {[%clk 0:00:21]}  Rd6 {[%clk 0:00:28]} 36. Re8 {[%clk 0:00:20]} 1-0


[Site "https://www.chess.com"]

[Event "Titled Tuesday Blitz January 11 2022"]
[White "Al-Tarboush, Ward"]
[Black "Jobava, Baadur"]
[WhiteFideId "7601450"]
[BlackFideId "13601520"]
[WhiteElo "2276"]
[BlackElo "2617"]
[Result "0-1"]
[Round "02"]
[TimeControl "180+1"]
[Date "2022.01.11"]
[WhiteClock "0:00:02"]
[BlackClock "0:00:46"]

1. e4 {[%clk 0:03:00]}  e6 {[%clk 0:02:57]} 2. d4 {[%clk 0:03:00]}  d5 {[%clk 0:02:58]} 3. exd5 {[%clk 0:03:01]}  exd5 {[%clk 0:02:58]} 4. Bd3 {[%clk 0:03:02]}  Nf6 {[%clk 0:02:58]} 5. Bg5 {[%clk 0:03:01]}  Be7 {[%clk 0:02:58]} 6. Ne2 {[%clk 0:03:01]}  h6 {[%clk 0:02:59]} 7. Bh4 {[%clk 0:03:00]}  O-O {[%clk 0:02:59]} 8. Nbc3 {[%clk 0:03:00]}  Nc6 {[%clk 0:02:58]} 9. f3 {[%clk 0:02:56]}  Nb4 {[%clk 0:02:58]} 10. Bf2 {[%clk 0:02:51]}  Re8 {[%clk 0:02:57]} 11. h4 {[%clk 0:02:49]}  Bf8 {[%clk 0:02:56]} 12. g4 {[%clk 0:02:47]}  Bxg4 {[%clk 0:02:44]} 13. fxg4 {[%clk 0:02:46]}  Nxg4 {[%clk 0:02:45]} 14. a3 {[%clk 0:02:23]}  Qf6 {[%clk 0:02:42]} 15. Rf1 {[%clk 0:02:17]}  Nh2 {[%clk 0:02:40]} 16. Rh1 {[%clk 0:02:09]}  Ng4 {[%clk 0:02:38]} 17. Rf1 {[%clk 0:02:07]}  Nc6 {[%clk 0:02:04]} 18. Bg3 {[%clk 0:01:53]}  Qxf1+ {[%clk 0:01:49]} 19. Kxf1 {[%clk 0:01:53]}  Ne3+ {[%clk 0:01:50]} 20. Kf2 {[%clk 0:01:46]}  Nxd1+ {[%clk 0:01:51]} 21. Rxd1 {[%clk 0:01:46]}  Rad8 {[%clk 0:01:40]} 22. Bxc7 {[%clk 0:01:45]}  Rd7 {[%clk 0:01:40]} 23. Bf4 {[%clk 0:01:45]}  Bd6 {[%clk 0:01:39]} 24. Nxd5 {[%clk 0:01:29]}  Kf8 {[%clk 0:01:38]} 25. c3 {[%clk 0:01:26]}  Bxa3 {[%clk 0:01:35]} 26. Nf6 {[%clk 0:01:16]}  gxf6 {[%clk 0:01:32]} 27. Bxh6+ {[%clk 0:01:16]}  Ke7 {[%clk 0:01:31]} 28. bxa3 {[%clk 0:01:16]}  Rh8 {[%clk 0:01:32]} 29. Bf4 {[%clk 0:01:14]}  Rxh4 {[%clk 0:01:32]} 30. Bg3 {[%clk 0:01:13]}  Rh8 {[%clk 0:01:31]} 31. Nf4 {[%clk 0:01:13]}  Kd8 {[%clk 0:01:30]} 32. Bf5 {[%clk 0:01:13]}  Rd6 {[%clk 0:01:18]} 33. Rb1 {[%clk 0:01:09]}  b6 {[%clk 0:01:17]} 34. Nd3 {[%clk 0:01:08]}  Rd5 {[%clk 0:01:17]} 35. Be4 {[%clk 0:01:08]}  Ne7 {[%clk 0:01:10]} 36. Bxd5 {[%clk 0:01:08]}  Nxd5 {[%clk 0:01:11]} 37. c4 {[%clk 0:01:08]}  Nc3 {[%clk 0:01:11]} 38. Re1 {[%clk 0:01:08]}  f5 {[%clk 0:01:10]} 39. Be5 {[%clk 0:01:08]}  Rh3 {[%clk 0:01:05]} 40. Bf6+ {[%clk 0:01:07]}  Kc8 {[%clk 0:01:01]} 41. Re8+ {[%clk 0:00:55]}  Kd7 {[%clk 0:01:01]} 42. Rd8+ {[%clk 0:00:42]}  Kc7 {[%clk 0:01:00]} 43. Nf4 {[%clk 0:00:38]}  Ne4+ {[%clk 0:01:00]} 44. Kg2 {[%clk 0:00:34]}  Nxf6 {[%clk 0:00:59]} 45. Rf8 {[%clk 0:00:26]}  Rh7 {[%clk 0:00:59]} 46. Kf3 {[%clk 0:00:23]}  Ne4 {[%clk 0:00:58]} 47. Nd5+ {[%clk 0:00:22]}  Kb7 {[%clk 0:00:57]} 48. Kf4 {[%clk 0:00:21]}  Rh4+ {[%clk 0:00:56]} 49. Ke5 {[%clk 0:00:20]}  Ng5 {[%clk 0:00:55]} 50. Rg8 {[%clk 0:00:11]}  Nf3+ {[%clk 0:00:55]} 51. Kd6 {[%clk 0:00:09]}  Nxd4 {[%clk 0:00:56]} 52. Rg7 {[%clk 0:00:09]}  Rh6+ {[%clk 0:00:55]} 53. Kd7 {[%clk 0:00:05]}  Nc6 {[%clk 0:00:54]} 54. Ke8 {[%clk 0:00:04]}  Ne5 {[%clk 0:00:54]} 55. Ke7 {[%clk 0:00:02]}  Re6+ {[%clk 0:00:53]} 56. Kf8 {[%clk 0:00:02]}  Kc6 {[%clk 0:00:51]} 57. Nf4 {[%clk 0:00:02]}  Ng6+ {[%clk 0:00:46]} 58. Nxg6 {[%clk 0:00:02]}  fxg6 {[%clk 0:00:46]} 59. Kf7 {[%clk 0:00:02]}  Rd6 {[%clk 0:00:45]} 60. Rg8 {[%clk 0:00:02]}  f4 {[%clk 0:00:45]} 61. Rc8+ {[%clk 0:00:03]}  Kd7 {[%clk 0:00:45]} 62. Ra8 {[%clk 0:00:03]}  f3 {[%clk 0:00:45]} 63. Rxa7+ {[%clk 0:00:03]}  Kc6 {[%clk 0:00:45]} 64. Kg7 {[%clk 0:00:03]}  Rd7+ {[%clk 0:00:45]} 65. Rxd7 {[%clk 0:00:02]}  Kxd7 {[%clk 0:00:46]} 66. c5 {[%clk 0:00:02]}  bxc5 {[%clk 0:00:46]} 0-1


[Site "https://www.chess.com"]

[Event "Titled Tuesday Blitz January 11 2022"]
[White "Altman, Joshua"]
[Black "Erigaisi Arjun"]
[WhiteFideId "426210"]
[BlackFideId "35009192"]
[WhiteElo "1945"]
[BlackElo "2745"]
[Result "0-1"]
[Round "02"]
[TimeControl "180+1"]
[Date "2022.01.11"]
[WhiteClock "0:00:19"]
[BlackClock "0:00:19"]

1. d4 {[%clk 0:03:00]}  Nf6 {[%clk 0:02:59]} 2. c4 {[%clk 0:03:01]}  g6 {[%clk 0:02:59]} 3. Nc3 {[%clk 0:03:01]}  Bg7 {[%clk 0:02:59]} 4. Nf3 {[%clk 0:03:02]}  O-O {[%clk 0:02:59]} 5. Bg5 {[%clk 0:03:02]}  d6 {[%clk 0:02:59]} 6. e3 {[%clk 0:03:03]}  Bg4 {[%clk 0:02:58]} 7. Be2 {[%clk 0:03:03]}  c6 {[%clk 0:02:58]} 8. h3 {[%clk 0:03:03]}  Bxf3 {[%clk 0:02:59]} 9. Bxf3 {[%clk 0:03:04]}  Nbd7 {[%clk 0:02:59]} 10. O-O {[%clk 0:03:04]}  e5 {[%clk 0:02:56]} 11. Qc2 {[%clk 0:03:03]}  Re8 {[%clk 0:02:56]} 12. Rfd1 {[%clk 0:03:02]}  Qc7 {[%clk 0:02:56]} 13. Rac1 {[%clk 0:03:01]}  Nf8 {[%clk 0:02:54]} 14. b4 {[%clk 0:03:00]}  Ne6 {[%clk 0:02:54]} 15. Bxf6 {[%clk 0:02:58]}  Bxf6 {[%clk 0:02:54]} 16. d5 {[%clk 0:02:58]}  Ng5 {[%clk 0:02:53]} 17. Be2 {[%clk 0:02:54]}  h5 {[%clk 0:02:40]} 18. dxc6 {[%clk 0:02:54]}  bxc6 {[%clk 0:02:40]} 19. b5 {[%clk 0:02:54]}  Rac8 {[%clk 0:02:35]} 20. bxc6 {[%clk 0:02:53]}  Qxc6 {[%clk 0:02:36]} 21. Nd5 {[%clk 0:02:53]}  Bg7 {[%clk 0:02:34]} 22. h4 {[%clk 0:02:49]}  Ne6 {[%clk 0:02:34]} 23. Bf3 {[%clk 0:02:49]}  Qd7 {[%clk 0:02:29]} 24. Qb3 {[%clk 0:02:37]}  e4 {[%clk 0:02:24]} 25. Be2 {[%clk 0:02:34]}  Rb8 {[%clk 0:02:22]} 26. Qa3 {[%clk 0:02:34]}  Qd8 {[%clk 0:02:17]} 27. Qa6 {[%clk 0:02:32]}  Nc5 {[%clk 0:02:08]} 28. Qxa7 {[%clk 0:02:25]}  Rb2 {[%clk 0:02:01]} 29. Bf1 {[%clk 0:02:17]}  Qxh4 {[%clk 0:01:55]} 30. g3 {[%clk 0:02:14]}  Qg4 {[%clk 0:01:54]} 31. Rb1 {[%clk 0:01:41]}  Rc2 {[%clk 0:01:11]} 32. Rb8 {[%clk 0:01:29]}  Rxb8 {[%clk 0:00:41]} 33. Qxb8+ {[%clk 0:01:30]}  Kh7 {[%clk 0:00:42]} 34. Qxd6 {[%clk 0:00:29]}  Qf3 {[%clk 0:00:41]} 35. Nf6+ {[%clk 0:00:15]}  Bxf6 {[%clk 0:00:36]} 36. Rd2 {[%clk 0:00:15]}  Be7 {[%clk 0:00:20]} 37. Qd5 {[%clk 0:00:13]}  Rxd2 {[%clk 0:00:20]} 38. Qxd2 {[%clk 0:00:14]}  h4 {[%clk 0:00:20]} 39. gxh4 {[%clk 0:00:11]}  Bxh4 {[%clk 0:00:19]} 40. Bg2 {[%clk 0:00:12]}  Qf5 {[%clk 0:00:18]} 41. Qd5 {[%clk 0:00:12]}  Bxf2+ {[%clk 0:00:16]} 42. Kf1 {[%clk 0:00:11]}  Bxe3+ {[%clk 0:00:16]} 43. Qxf5 {[%clk 0:00:10]}  gxf5 {[%clk 0:00:17]} 44. Ke2 {[%clk 0:00:11]}  f4 {[%clk 0:00:17]} 45. a4 {[%clk 0:00:11]}  Bd4 {[%clk 0:00:14]} 46. a5 {[%clk 0:00:11]}  f3+ {[%clk 0:00:14]} 47. Bxf3 {[%clk 0:00:11]}  exf3+ {[%clk 0:00:15]} 48. Kxf3 {[%clk 0:00:12]}  f5 {[%clk 0:00:15]} 49. Kf4 {[%clk 0:00:13]}  Kg6 {[%clk 0:00:15]} 50. a6 {[%clk 0:00:12]}  Nxa6 {[%clk 0:00:16]} 51. c5 {[%clk 0:00:13]}  Nxc5 {[%clk 0:00:16]} 52. Kf3 {[%clk 0:00:14]}  Kg5 {[%clk 0:00:17]} 53. Kg2 {[%clk 0:00:14]}  Kf4 {[%clk 0:00:18]} 54. Kh1 {[%clk 0:00:15]}  Kf3 {[%clk 0:00:17]} 55. Kh2 {[%clk 0:00:15]}  f4 {[%clk 0:00:17]} 56. Kh1 {[%clk 0:00:16]}  Ne4 {[%clk 0:00:17]} 57. Kh2 {[%clk 0:00:17]}  Ng3 {[%clk 0:00:16]} 58. Kh3 {[%clk 0:00:17]}  Bg1 {[%clk 0:00:16]} 59. Kh4 {[%clk 0:00:17]}  Kg2 {[%clk 0:00:17]} 60. Kg4 {[%clk 0:00:17]}  f3 {[%clk 0:00:18]} 61. Kh4 {[%clk 0:00:17]}  f2 {[%clk 0:00:19]} 62. Kg4 {[%clk 0:00:18]}  f1=Q {[%clk 0:00:19]} 63. Kh4 {[%clk 0:00:19]}  Qf4# {[%clk 0:00:19]} 0-1


[Site "https://www.chess.com"]

[Event "Titled Tuesday Blitz January 11 2022"]
[White "Budrewicz, Krzysztof"]
[Black "Dastan, Muhammed Batuhan"]
[WhiteFideId "1127950"]
[BlackFideId "6300014"]
[WhiteElo "2248"]
[BlackElo "2410"]
[Result "0-1"]
[Round "02"]
[TimeControl "180+1"]
[Date "2022.01.11"]
[WhiteClock "0:00:30"]
[BlackClock "0:00:22"]

1. d4 {[%clk 0:03:00]}  d5 {[%clk 0:02:59]} 2. c4 {[%clk 0:03:00]}  c6 {[%clk 0:03:00]} 3. Nf3 {[%clk 0:02:59]}  Nf6 {[%clk 0:03:00]} 4. Nbd2 {[%clk 0:02:59]}  Bf5 {[%clk 0:02:58]} 5. Nh4 {[%clk 0:02:58]}  Bc8 {[%clk 0:02:58]} 6. Qb3 {[%clk 0:02:57]}  g6 {[%clk 0:02:40]} 7. g3 {[%clk 0:02:57]}  Bg7 {[%clk 0:02:40]} 8. Bg2 {[%clk 0:02:56]}  O-O {[%clk 0:02:38]} 9. O-O {[%clk 0:02:56]}  dxc4 {[%clk 0:02:28]} 10. Qxc4 {[%clk 0:02:55]}  Nfd7 {[%clk 0:02:26]} 11. Nb3 {[%clk 0:02:50]}  Nb6 {[%clk 0:02:25]} 12. Qd3 {[%clk 0:02:49]}  Na6 {[%clk 0:02:20]} 13. Rd1 {[%clk 0:02:42]}  Be6 {[%clk 0:02:17]} 14. Bd2 {[%clk 0:02:36]}  Bxb3 {[%clk 0:01:41]} 15. Qxb3 {[%clk 0:02:36]}  Qxd4 {[%clk 0:01:40]} 16. Bc3 {[%clk 0:02:24]}  Qa4 {[%clk 0:01:28]} 17. Qxa4 {[%clk 0:02:17]}  Nxa4 {[%clk 0:01:29]} 18. Bxg7 {[%clk 0:02:17]}  Kxg7 {[%clk 0:01:29]} 19. Rd7 {[%clk 0:02:18]}  N6c5 {[%clk 0:01:14]} 20. Rxe7 {[%clk 0:02:17]}  Rfe8 {[%clk 0:01:15]} 21. Rxe8 {[%clk 0:02:15]}  Rxe8 {[%clk 0:01:16]} 22. e3 {[%clk 0:02:16]}  Nxb2 {[%clk 0:01:13]} 23. Rb1 {[%clk 0:02:16]}  Nba4 {[%clk 0:01:05]} 24. Nf3 {[%clk 0:02:14]}  Rd8 {[%clk 0:01:05]} 25. Nd4 {[%clk 0:02:14]}  Kf6 {[%clk 0:00:59]} 26. h4 {[%clk 0:02:13]}  h5 {[%clk 0:00:59]} 27. Kf1 {[%clk 0:02:08]}  Nb6 {[%clk 0:00:59]} 28. Ke2 {[%clk 0:02:04]}  Ne6 {[%clk 0:01:00]} 29. Nb3 {[%clk 0:02:00]}  Rd7 {[%clk 0:00:59]} 30. Na5 {[%clk 0:01:54]}  Nc5 {[%clk 0:00:58]} 31. Rb4 {[%clk 0:01:51]}  Nd3 {[%clk 0:00:53]} 32. Rb1 {[%clk 0:01:47]}  Ne5 {[%clk 0:00:53]} 33. Nb3 {[%clk 0:01:42]}  Nec4 {[%clk 0:00:52]} 34. Be4 {[%clk 0:01:36]}  Ke7 {[%clk 0:00:52]} 35. Bd3 {[%clk 0:01:33]}  Na4 {[%clk 0:00:43]} 36. Rc1 {[%clk 0:01:25]}  Ne5 {[%clk 0:00:43]} 37. Bb1 {[%clk 0:01:17]}  Ng4 {[%clk 0:00:43]} 38. f3 {[%clk 0:01:16]}  Nf6 {[%clk 0:00:43]} 39. Nd4 {[%clk 0:01:15]}  a6 {[%clk 0:00:41]} 40. a3 {[%clk 0:01:14]}  Nd5 {[%clk 0:00:38]} 41. Bd3 {[%clk 0:01:10]}  Ndc3+ {[%clk 0:00:38]} 42. Kd2 {[%clk 0:01:09]}  Nb5 {[%clk 0:00:39]} 43. Bxb5 {[%clk 0:01:02]}  axb5 {[%clk 0:00:40]} 44. Ke2 {[%clk 0:00:58]}  Nb6 {[%clk 0:00:40]} 45. Rc3 {[%clk 0:00:56]}  Rd8 {[%clk 0:00:40]} 46. Nb3 {[%clk 0:00:54]}  Na4 {[%clk 0:00:39]} 47. Rc2 {[%clk 0:00:51]}  Kd6 {[%clk 0:00:34]} 48. Nd4 {[%clk 0:00:49]}  Nb6 {[%clk 0:00:31]} 49. g4 {[%clk 0:00:43]}  Ra8 {[%clk 0:00:29]} 50. Rc3 {[%clk 0:00:41]}  Nc4 {[%clk 0:00:28]} 51. Nc2 {[%clk 0:00:41]}  hxg4 {[%clk 0:00:28]} 52. fxg4 {[%clk 0:00:41]}  Rh8 {[%clk 0:00:29]} 53. Rd3+ {[%clk 0:00:42]}  Kc7 {[%clk 0:00:29]} 54. Rd4 {[%clk 0:00:39]}  Rxh4 {[%clk 0:00:29]} 55. Rf4 {[%clk 0:00:39]}  Rh2+ {[%clk 0:00:29]} 56. Kd3 {[%clk 0:00:38]}  Rd2+ {[%clk 0:00:29]} 57. Kc3 {[%clk 0:00:38]}  Rd7 {[%clk 0:00:30]} 58. Rf6 {[%clk 0:00:37]}  Re7 {[%clk 0:00:29]} 59. Rf3 {[%clk 0:00:35]}  Ne5 {[%clk 0:00:28]} 60. Rf4 {[%clk 0:00:36]}  Nc4 {[%clk 0:00:28]} 61. Rf3 {[%clk 0:00:36]}  Kb6 {[%clk 0:00:28]} 62. a4 {[%clk 0:00:36]}  Nd6 {[%clk 0:00:27]} 63. axb5 {[%clk 0:00:36]}  Nxb5+ {[%clk 0:00:27]} 64. Kd3 {[%clk 0:00:35]}  Nd6 {[%clk 0:00:26]} 65. Rf6 {[%clk 0:00:34]}  Kc7 {[%clk 0:00:27]} 66. Nd4 {[%clk 0:00:34]}  Ne8 {[%clk 0:00:25]} 67. Rf1 {[%clk 0:00:34]}  Ng7 {[%clk 0:00:25]} 68. Kc4 {[%clk 0:00:33]}  Ne8 {[%clk 0:00:24]} 69. Kd3 {[%clk 0:00:32]}  Rd7 {[%clk 0:00:23]} 70. Ke4 {[%clk 0:00:31]}  Nd6+ {[%clk 0:00:22]} 71. Ke5 {[%clk 0:00:30]}  Nc4+ {[%clk 0:00:22]} 72. Kf6 {[%clk 0:00:30]}  Nxe3 {[%clk 0:00:22]} 73. Rf4 {[%clk 0:00:30]}  Nd5+ {[%clk 0:00:22]} 0-1


[Site "https://www.chess.com"]